Cogmind - Beta 13 @@@ ROGUE MODE // 2024.05.06 @ 17:12:08 Player: Lunace Result: Destroyed by G-50 Soldier with Heavy Laser Performance ------------- Evolutions (4) 2000 Regions Visited (13) 2600 Robots Destroyed (114) 570 Value Destroyed (4042) 4042 Prototype IDs (31) 620 Alien Tech Used (0) 0 Bonus (2098) 2098 TOTAL SCORE: 11930 Bonus ------- High Alert Combat Kills 359 Follower Combat Kills 1191 Entered Garrisons 200 Used RIF Installer 1000 Aligned with FarCom 300 Friendly Fire -952 Cogmind --------- Core Integrity 0/850 Matter 295/300 Energy 96/100 System Corruption 1% Temperature Cool (18) Movement Core (400) Ox7 Location -6/Extension Parts ------- > --- POWER (1) -------- (None) > --- PROPULSION (5) --- (None) > --- UTILITY (6) ------ Large Storage Unit Improved Signal Interpreter Advanced Terrain Scan Processor > --- WEAPON (3) ------- Ripper > --- INVENTORY (15) --- Improved Deuterium Engine Improved Deuterium Engine Matter Compressor (250) Improved Transmission Jammer System Restoration Module Datajack Peak State ------------ > --- POWER ------------ Cooled Ion Engine > --- PROPULSION ------- Improved Carbon-fiber Leg Improved Titanium Leg Potential Leg Potential Leg > --- UTILITY ---------- Large Storage Unit Improved Signal Interpreter System Shield Relay Coupler [NC] Improved Recalibrator > --- WEAPON ----------- AWS/Thermal Improved Datajack > --- INVENTORY -------- Airjet Gravmag System Gravmag System Structural Scanner Improved Sensor Array Melee Analysis Suite Improved Transmission Jammer Hacking Suite System Shield System Restoration Module Long-range Tractor Beam Heavy Mace [Rating: 68] Favorites ----------- Power Reinforced Ion Engine Engine Reinforced Ion Engine Power Core Fission Core Propulsion Potential Leg Treads Light Treads Leg Potential Leg Wheel Compact Wheel Hover Unit Gravmag System Flight Unit Improved VTOL Module Utility Large Storage Unit Device Long-range Tractor Beam Storage Large Storage Unit Processor Improved Signal Interpreter Hackware Relay Coupler [NC] Protection Light Armor Plating Weapon Heavy Mace Energy Gun AWS/Thermal Energy Cannon EM Pulse Cannon Ballistic Gun Assault Rifle Ballistic Cannon Heavy Flak Cannon Launcher Mini Grenade Launcher Special Weapon Remote Datajack Impact Weapon Heavy Mace Slashing Weapon Greatsword Special Melee Weapon Improved Datajack Build | -11 -10 -10 -9 -9 -9 -8 -8 -8 -8 -8 -7 -6 -6 ------- Run | Yrd Mat Min Mat Min Exi Min Mat Gar Mat Sto Fac Fac Ext Slots Evolved 8 | . . . 2 . . . 2 . . . 2 2 . Power . | . . . . . . . . . . . . . . Propulsion 3 | . . . 1 . . . . . . . 1 1 . Utility 4 | . . . 1 . . . 1 . . . 1 1 . Weapon 1 | . . . . . . . 1 . . . . . . Parts Attached 150 | 7 1 3 11 13 4 . 2 20 7 15 35 8 24 Power 14 | 1 . . 2 1 . . . 1 1 2 3 1 2 Engine 10 | 1 . . 2 1 . . . 1 . 2 1 . 2 Core 4 | . . . . . . . . . 1 . 2 1 . Reactor . | . . . . . . . . . . . . . . Propulsion 42 | 2 . 1 1 6 2 . 1 2 2 5 10 3 7 Treads 9 | 2 . 1 1 3 . . 1 . . 1 . . . Leg 19 | . . . . . 2 . . 2 2 3 4 . 6 Wheel 6 | . . . . 3 . . . . . . 1 1 1 Hover 7 | . . . . . . . . . . . 5 2 . Flight 1 | . . . . . . . . . . 1 . . . Utility 49 | 2 . 1 4 4 1 . . 10 4 5 14 1 3 Device 19 | 1 . 1 . 2 . . . 3 1 2 7 1 1 Storage 5 | 1 . . 1 1 1 . . . . 1 . . . Processor 4 | . . . 1 . . . . 1 . . 2 . . Hackware 15 | . . . . . . . . 5 2 2 5 . 1 Protection 6 | . . . 2 1 . . . 1 1 . . . 1 Artifact . | . . . . . . . . . . . . . . Weapon 45 | 2 1 1 4 2 1 . 1 7 . 3 8 3 12 Energy Gun 8 | 1 1 . . . 1 . . 2 . 1 . 1 1 Energy Cannon 4 | . . 1 2 . . . . . . 1 . . . Ballistic Gun 2 | 1 . . 1 . . . . . . . . . . Ballistic Cannon 2 | . . . . . . . . . . . . . 2 Launcher 7 | . . . 1 1 . . . 1 . . 2 1 1 Special Weapon 4 | . . . . . . . . . . . 3 . 1 Impact Weapon 8 | . . . . 1 . . 1 1 . 1 1 1 2 Slashing Weapon 4 | . . . . . . . . . . . 1 . 3 Piercing Weapon . | . . . . . . . . . . . . . . Special Melee Weapon 6 | . . . . . . . . 3 . . 1 . 2 Unidentified Prototypes 6 | . . . 1 1 . . . . . 4 . . . Parts Lost 42 | . . . . 7 . . . 1 4 . 8 1 21 Power 4 | . . . . . . . . . 1 . 1 . 2 Propulsion 18 | . . . . 3 . . . . 2 . 4 1 8 Utility 11 | . . . . 3 . . . 1 . . 2 . 5 Weapon 9 | . . . . 1 . . . . 1 . 1 . 6 Highest Loss Streak 12 | . . . . 4 . . . 1 3 . 2 1 12 To Critical Strikes . | . . . . . . . . . . . . . . Average Slot Usage (%) 89 | . 100 100 97 93 95 88 81 88 93 86 84 84 86 Engine 7 | . 14 14 10 11 11 11 9 9 5 8 5 . 2 Treads 7 | . 28 28 32 20 12 . 8 2 . 2 . . . Leg 13 | . . . . . 9 22 18 24 26 22 16 . 13 Wheel 3 | . . . . 9 11 11 . . . . 2 1 5 Hover 2 | . . . . . . . . . . . 5 26 5 Device 12 | . 14 14 4 10 22 22 18 11 7 13 8 20 15 Storage 9 | . 14 14 11 19 11 11 9 9 9 9 7 6 6 Processor 4 | . . . 4 . . . . . . . 8 13 13 Hackware 5 | . . . . . . . . 6 17 13 12 . . Protection 2 | . . . 12 1 . . . 6 1 . . . . Energy Gun 4 | . 14 4 . . 4 11 9 6 5 7 3 . . Energy Cannon 1 | . . 9 10 . . . . . . . . . . Ballistic Gun 1 | . 14 14 5 . . . . . . . . . . Launcher 2 | . . . 5 11 6 . . 2 . . 1 3 . Impact Weapon 3 | . . . . 8 6 . 9 6 9 2 1 1 4 Slashing Weapon 1 | . . . . . . . . . . . 3 . 3 Special Melee Weapon 1 | . . . . . . . . 3 9 8 1 . 1 Naked Turns . | . . . . . . . . . . . . . . Heaviest Build 56 | 15 16 19 40 43 47 47 50 52 39 47 44 43 56 Greatest Support 93 | 40 40 40 60 60 60 60 60 75 75 75 93 46 46 Greatest Overweight (x) 4 | . . . . 2 1 . . . . 1 4 1 2 Average Overweight (x) . | . . . . . . . . . . . . . . Largest Inventory Capacity 15 | 8 8 8 15 15 15 15 15 15 15 15 15 15 15 Average Capacity 13 | 7 8 8 8 15 15 15 15 15 15 15 15 15 15 Most Carried 15 | 1 4 8 10 10 10 9 10 15 15 15 15 6 8 Average Carried 8 | . 2 6 7 4 6 9 9 12 14 12 11 4 5 Final Capacity 15 | 8 8 8 15 15 15 15 15 15 15 15 15 15 15 Final Carried 15 | 1 4 8 10 6 9 9 10 15 13 15 5 6 6 Class Distribution -------------------- 60% | Mutant 18% | Bothacker-Mutant 12% | Scavenger-Mutant 5% | Skirmisher Dominant Class ---------------- Mutant | -10/Materials Mutant | -10/Mines Mutant | -9/Materials Mutant | -9/Mines Mutant | -9/Exiles Mutant | -8/Mines Mutant | -8/Materials Bothacker-Mutant | -8/Garrison Bothacker-Mutant | -8/Materials Bothacker-Mutant | -8/Storage Mutant | -7/Factory Scavenger-Mutant | -6/Factory Scavenger-Mutant | -6/Extension Resources | -11 -10 -10 -9 -9 -9 -8 -8 -8 -8 -8 -7 -6 -6 ----------- Run | Yrd Mat Min Mat Min Exi Min Mat Gar Mat Sto Fac Fac Ext Matter Collected 2992 | 170 . 175 265 472 159 . 20 308 82 100 606 192 443 Remotely 1163 | . . . . 345 . . 20 100 . . 375 192 131 Salvage Created 3670 | 89 . 40 320 374 . . 159 709 60 264 1129 51 475 Parts 198 | 6 . . 21 22 . . 10 50 1 17 53 2 16 Haulers Intercepted . | . . . . . . . . . . . . . . Recyclers Shooed 3 | 1 . . . . . . . . . . . . 2 Parts Field Recycled . | . . . . . . . . . . . . . . Retrieved Matter . | . . . . . . . . . . . . . . Parts Self-Destructed . | . . . . . . . . . . . . . . Prevented . | . . . . . . . . . . . . . . Kills | -11 -10 -10 -9 -9 -9 -8 -8 -8 -8 -8 -7 -6 -6 ------- Run | Yrd Mat Min Mat Min Exi Min Mat Gar Mat Sto Fac Fac Ext Combat Hostiles Destroyed 99 | . . . 9 28 . . 5 21 1 4 20 4 7 Melee 13 | . . . . . . . . 3 1 . 3 . 6 Guns 22 | . . . . . . . 3 9 . 4 6 . . Cannons 5 | . . . 5 . . . . . . . . . . AOE 58 | . . . 4 28 . . 2 9 . . 11 4 . Classes Destroyed 16 | 2 . . 5 3 . . . 2 . 2 2 . . Worker 7 | . . . 1 5 . . . . . . 1 . . Builder 3 | . . . . 1 . . 1 . . . 1 . . Tunneler 3 | 1 . . 1 1 . . . . . . . . . Recycler 11 | 1 . 1 . 3 . . . . . . 5 . 1 Operator 2 | . . . . . . . . . . 1 . . 1 Drone 1 | . . . . . . . . . . 1 . . . Watcher 5 | . . . 1 . . . 1 . . 1 1 . 1 Swarmer 29 | . . . 3 6 . . 3 10 . . . 4 3 Grunt 23 | . . . 4 . . . 2 6 . . 10 . 1 Brawler 1 | . . . . . . . . . . . 1 . . Duelist 4 | . . . . . . . . . . . 4 . . Sentry 10 | . . . 2 . . . . 3 . 2 2 . 1 Demolisher 2 | . . . . 2 . . . . . . . . . Hunter 7 | . . . . . . . . 2 1 2 . . 2 Programmer 6 | . . . . . . . . 3 . . 3 . . Assembled 20 | . . . . 20 . . . . . . . . . Guerrilla 1 | . . . . . . . . 1 . . . . . Best Kill Streak 23 | 2 . 1 5 23 . . 4 9 1 2 5 4 3 Combat Bots Only 23 | . . . 3 23 . . 3 9 1 2 4 4 3 Max Kills in Single Turn 7 | 1 . 1 3 7 . . 3 3 1 1 3 2 1 Gunslinging . | . . . . . . . . . . . . . . Exploded 7 | . . . 2 7 . . 2 3 . . 3 2 . Melee 1 | . . . . . . . . 1 1 . 1 . 1 Uniques/NPCs Destroyed . | . . . . . . . . . . . . . . Combat | -11 -10 -10 -9 -9 -9 -8 -8 -8 -8 -8 -7 -6 -6 -------- Run | Yrd Mat Min Mat Min Exi Min Mat Gar Mat Sto Fac Fac Ext Hostile Shots Fired 618 | . . . 15 59 . . 20 52 88 7 99 8 270 Missed 193 | . . . 1 9 . . 10 17 25 4 35 . 92 Damage Taken 8160 | . . . 180 1410 . . 140 638 1223 81 1523 143 2822 Core 1744 | . . . 28 267 . . 41 74 157 18 297 28 834 Absorbed by Shields 192 | . . . . . . . . . . . . . 192 Regen/Repaired (Parts) 82 | . . . 19 . . . . . . . 63 . . Core Remaining (%) 66 | 100 . 100 . . . 26 . . . 47 57 . . Volleys Fired 105 | 7 . . 19 16 . . . 12 11 . 21 4 15 Largest 2 | 2 . . 2 2 . . . 1 1 . 1 1 1 Hottest 83 | 70 . . 83 60 . . . 30 65 . 39 39 53 Shots Fired 243 | 14 . . 22 26 . . 22 44 12 23 61 4 15 Gun 146 | 14 . . 3 . . . 22 32 12 23 40 . . Cannon 26 | . . . 16 . . . . . . . . . 10 Launcher 62 | . . . 3 26 . . . 12 . . 14 2 5 Special 9 | . . . . . . . . . . . 7 2 . Kinetic 20 | 7 . . 3 . . . . . . . . . 10 Thermal 124 | 7 . . . . . . 22 32 . 23 40 . . Explosive 57 | . . . 3 26 . . . 12 . . 14 2 . Electromagnetic 33 | . . . 16 . . . . . 12 . . . 5 Robot Hit Streak 19 | 6 . . 5 6 . . 6 19 3 3 15 6 8 Robot Miss Streak 6 | 1 . . 2 3 . . 3 2 5 2 2 . 6 Penetration Max . | . . . . . . . . . . . . . . Secondary Targets . | . . . . . . . . . . . . . . Autonomous 121 | . . . . . . . 22 33 . 24 42 . . Shots Hit Robots 279 | 10 . . 15 25 . . 13 55 15 28 74 3 41 Core Hits 187 | 3 . 1 11 57 . . 7 28 1 8 39 5 27 Critical Kills 1 | . . . . . . . . 1 . . . . . Critical Parts Destroyed 4 | . . . . 2 . . . 1 . . . . 1 Critical Strikes 10 | . . . . 2 . . . 2 . . 2 . 4 Smash 5 | . . . . 2 . . . 2 . . . . 1 Sever 5 | . . . . . . . . . . . 2 . 3 Melee Attacks 200 | . . . . 13 . . . 43 15 16 41 1 71 Impact 97 | . . . . 13 . . . 26 9 2 1 1 45 Slashing 51 | . . . . . . . . . . . 26 . 25 Piercing . | . . . . . . . . . . . . . . Sneak Attacks 45 | . . . . 10 . . . 15 . 9 7 . 4 Combat Hostiles 8 | . . . . . . . . 6 . 1 1 . . Follow-up Attacks 2 | . . . . . . . . . . . . . 2 Damage Inflicted 13359 | 129 . 5 868 2928 . 16 686 2226 283 412 3582 365 1859 Guns 2655 | 129 . . . . . . 402 815 71 412 826 . . Cannons 537 | . . . 322 . . . . . . . . . 215 Explosions 5995 | . . . 546 1886 . . 284 766 . . 1633 365 515 Melee 4139 | . . . . 1042 . . . 645 200 . 1123 . 1129 Ramming 33 | . . 5 . . . 16 . . 12 . . . . Kinetic 254 | 39 . . . . . . . . . . . . 215 Thermal 2686 | 90 . . . . . . 402 815 . 412 967 . . Explosive 5339 | . . . 546 1886 . . 284 766 . . 1492 365 . Electromagnetic 908 | . . . 322 . . . . . 71 . . . 515 Impact 2373 | . . . . 1042 . . . 645 200 . . . 486 Slashing 1766 | . . . . . . . . . . . 1123 . 643 Piercing . | . . . . . . . . . . . . . . Highest Corruption 1 | . . . . . . . . 1 1 1 . . 1 Average Corruption 1 | . . . . . . . . 1 1 1 . . 1 Corruption Purged . | . . . . . . . . . . . . . . Corruption Blocked . | . . . . . . . . . . . . . . Effects 10 | . . . . . . . . . 5 5 . . . Message Errors 1 | . . . . . . . . . . 1 . . . Matter Fused 2 | . . . . . . . . . 2 . . . . Heat Flow Errors 2 | . . . . . . . . . 1 1 . . . Energy Discharges 2 | . . . . . . . . . . 2 . . . Data Loss (major) 1 | . . . . . . . . . 1 . . . . Misfires 1 | . . . . . . . . . 1 . . . . Alerts 1 | . . . . . . . . . . 1 . . . Overload Shots . | . . . . . . . . . . . . . . Overflow Damage 1292 | . . . 21 410 . . 74 110 9 . 406 . 262 Projectiles 12 | . . . 12 . . . . . . . . . . Explosions 251 | . . . 9 79 . . 74 21 . . 68 . . Melee 1029 | . . . . 331 . . . 89 9 . 338 . 262 Knockbacks 9 | . . . . 4 . . . 2 . . . . 3 Impact 7 | . . . . 4 . . . 2 . . . . 1 Kinetic 2 | . . . . . . . . . . . . . 2 Secondary . | . . . . . . . . . . . . . . Self-Inflicted Damage 837 | . . . 32 276 . . 47 71 . . 364 21 26 Shots 24 | . . . 2 7 . . 1 2 . . 9 1 2 Rammed 3 | . . 3 . . . . . . . . . . . Targets Rammed 8 | . . 4 . . . 2 . . 2 . . . . Kicked 4 | . . . . . . 2 . . 2 . . . . Crushed 1 | . . 1 . . . . . . . . . . . Highest Temperature 342 | 36 . . 173 42 . . . 14 342 107 3 . 1 Average Temperature 74 | 17 . . 59 23 . . . 6 167 56 3 . 1 Received Heat Transfer 1621 | . . . 57 60 . . 18 219 189 18 345 . 715 Effects 2 | . . . . . . . . . 2 . . . . Interference 2 | . . . . . . . . . 2 . . . . Siege Activations . | . . . . . . . . . . . . . . Robots Corrupted . | . . . . . . . . . . . . . . Combat Hostiles . | . . . . . . . . . . . . . . Parts Fried 13 | . . . 1 7 . . . 2 2 . . . 1 Impact Corruptions 18 | . . . . 12 . . . 2 1 . . . 3 Robots Melted . | . . . . . . . . . . . . . . Combat Hostiles . | . . . . . . . . . . . . . . Parts Melted 13 | . . . . . . . 1 5 . 1 6 . . Heat Transferred 3343 | 259 . . . . . . 518 962 . 518 1086 . . Parts Sabotaged . | . . . . . . . . . . . . . . Parts Stolen . | . . . . . . . . . . . . . . Parts Stripped . | . . . . . . . . . . . . . . Power Chain Reactions . | . . . . . . . . . . . . . . Alert | -11 -10 -10 -9 -9 -9 -8 -8 -8 -8 -8 -7 -6 -6 ------- Run | Yrd Mat Min Mat Min Exi Min Mat Gar Mat Sto Fac Fac Ext Peak Influence 1156 | 10 13 9 235 293 . . 180 1156 655 272 552 464 805 Initial 563 | . 6 4 3 91 . . . 117 563 272 31 270 226 Average 304 | 5 10 6 94 226 . . 65 809 594 96 326 373 321 Maximum Alert Level 4 | . . . 1 1 . . . 4 2 1 2 2 3 Low Security (%) 39 | 100 100 100 89 8 . 100 100 5 . 90 20 . 18 Level 1 33 | . . . 10 91 . . . 15 . 9 50 48 58 Level 2 14 | . . . . . . . . 2 100 . 29 51 11 Level 3 10 | . . . . . . . . 67 . . . . 12 Level 4 1 | . . . . . . . . 9 . . . . . Level 5 . | . . . . . . . . . . . . . . High Security . | . . . . . . . . . . . . . . Max Security . | . . . . . . . . . . . . . . Squads Dispatched 25 | . . 1 2 . . . 1 . 4 2 6 1 8 Investigation 10 | . . 1 1 . . . 1 . . 1 2 . 4 Extermination 1 | . . . . . . . . . . . 1 . . Reinforcement 10 | . . . 1 . . . . . 3 1 2 1 2 Assault 3 | . . . . . . . . . . . 1 . 2 Garrison 1 | . . . . . . . . . 1 . . . . Intercept . | . . . . . . . . . . . . . . Searches Triggered . | . . . . . . . . . . . . . . Construction Impeded 2 | . . . . . . . . . . . 1 1 . Haulers Reinforced 1 | . . . . . . . . . . . 1 . . Active Scanning Responses . | . . . . . . . . . . . . . . Cargo Convoy Interrupts . | . . . . . . . . . . . . . . Alert ID Control Effect 5 | . . . . . . . . 2 2 1 . . . Stealth | -11 -10 -10 -9 -9 -9 -8 -8 -8 -8 -8 -7 -6 -6 --------- Run | Yrd Mat Min Mat Min Exi Min Mat Gar Mat Sto Fac Fac Ext Distress Signals 9 | . . . 3 . . . . . 1 1 3 . 1 Communications Jammed 32 | . . . . . . . . . . . . . 32 Distress Signals 32 | . . . . . . . . . . . . . 32 Times Spotted 203 | . 1 4 16 28 . . 5 33 16 18 33 4 45 Peak Tracking Total 20 | . 1 2 4 20 . . 3 6 9 4 6 4 15 Tactical Retreats 9 | . . . . . . . . . 2 . 2 1 4 Traps | -11 -10 -10 -9 -9 -9 -8 -8 -8 -8 -8 -7 -6 -6 ------- Run | Yrd Mat Min Mat Min Exi Min Mat Gar Mat Sto Fac Fac Ext Traps Triggered 10 | . . . 1 . . . 1 2 . . 4 . 2 Indirectly . | . . . . . . . . . . . . . . Trap Hack Attempts 5 | . . . . . . . . . . . . . 5 Triggered . | . . . . . . . . . . . . . . Disarmed . | . . . . . . . . . . . . . . Reprogrammed 2 | . . . . . . . . . . . . . 2 Reused . | . . . . . . . . . . . . . . Traps Extracted . | . . . . . . . . . . . . . . Installed . | . . . . . . . . . . . . . . Triggered . | . . . . . . . . . . . . . . Machines | -11 -10 -10 -9 -9 -9 -8 -8 -8 -8 -8 -7 -6 -6 ---------- Run | Yrd Mat Min Mat Min Exi Min Mat Gar Mat Sto Fac Fac Ext Machines Disabled 23 | . . . . . . . 1 5 . 1 9 . 7 Max in Single Turn 4 | . . . . . . . 1 1 . 1 4 . 2 Garrison Access 3 | . . . . . . . . . . . 2 1 . Garrison Relay 3 | . . . . . . . . 3 . . . . . Machines Repaired . | . . . . . . . . . . . . . . Machines Dismantled . | . . . . . . . . . . . . . . Machines Sabotaged . | . . . . . . . . . . . . . . Overloaded Fab Kills . | . . . . . . . . . . . . . . Hacking | -11 -10 -10 -9 -9 -9 -8 -8 -8 -8 -8 -7 -6 -6 --------- Run | Yrd Mat Min Mat Min Exi Min Mat Gar Mat Sto Fac Fac Ext Machines Accessed 45 | . 4 1 5 1 2 1 2 2 . 5 10 4 8 Terminals 29 | . 3 . 4 . . 1 1 2 . 4 4 2 8 Fabricators 2 | . . . . . . . . . . . 1 1 . Repair Stations 3 | . . . 1 . . . . . . . 2 . . Recycling Units 3 | . 1 . . . . . . . . 1 1 . . Scanalyzers . | . . . . . . . . . . . . . . Garrison Access 4 | . . . . . . . 1 . . . 2 1 . Total Hacks 106 | . 14 1 14 1 2 3 4 2 . 8 25 12 20 Successful 51 | . 8 1 10 1 2 . 2 2 . 3 11 7 4 Failed 55 | . 6 . 4 . . 3 2 . . 5 14 5 16 Catastrophic 11 | . . . 2 . . . . . . 1 2 1 5 Database Lockouts . | . . . . . . . . . . . . . . Manual 65 | . 12 . 10 . 1 3 1 . . 9 17 8 4 Terminals 75 | . 10 . 12 . . 3 3 2 . 7 12 6 20 Fabricators 6 | . . . . . . . . . . . 2 4 . Repair Stations 6 | . . . 2 . . . . . . . 4 . . Recycling Units 8 | . 4 . . . . . . . . 1 3 . . Scanalyzers . | . . . . . . . . . . . . . . Garrison Access 7 | . . . . . . . 1 . . . 4 2 . Terminal Hacks 17 | . . 1 3 1 2 . 1 2 . 2 1 1 3 Record 1 | . . . . . 1 . . . . . . . . Prototype ID Bank 1 | . . . . . . . 1 . . . . . . Open Door 8 | . . 1 . 1 . . . 1 . 2 . . 3 Emergency Access Points 1 | . . . . . . . . 1 . . . . . Terminal Index 3 | . . . 1 . . . . . . . 1 1 . Registered Components 1 | . . . 1 . . . . . . . . . . Zone Layout 1 | . . . 1 . . . . . . . . . . Derelict Proto ID Bank 1 | . . . . . 1 . . . . . . . . Fabricator Hacks 2 | . . . . . . . . . . . 1 1 . Network Status 2 | . . . . . . . . . . . 1 1 . Repair Station Hacks 2 | . . . 2 . . . . . . . . . . Scan Component 1 | . . . 1 . . . . . . . . . . Repair 1 | . . . 1 . . . . . . . . . . Recycling Unit Hacks 2 | . 2 . . . . . . . . . . . . Process 1 | . 1 . . . . . . . . . . . . Report Inventory 1 | . 1 . . . . . . . . . . . . Scanalyzer . | . . . . . . . . . . . . . . Garrison Access Hacks 5 | . . . . . . . 1 . . . 3 1 . Unlock Access 1 | . . . . . . . 1 . . . . . . Seal Access 2 | . . . . . . . . . . . 1 1 . Coupler Status 2 | . . . . . . . . . . . 2 . . Unauthorized Hacks 23 | . 6 . 5 . . . . . . 1 6 4 1 Terminals 15 | . 4 . 5 . . . . . . . 3 2 1 Assimilate 2 | . 1 . . . . . . . . . . 1 . Botnet 10 | . 2 . 4 . . . . . . . 2 1 1 Operators 3 | . 1 . 1 . . . . . . . 1 . . Fabricators 2 | . . . . . . . . . . . . 2 . Fabnet 1 | . . . . . . . . . . . . 1 . Haulers 1 | . . . . . . . . . . . . 1 . Repair Stations . | . . . . . . . . . . . . . . Recycling Units 5 | . 2 . . . . . . . . 1 2 . . Monitor 2 | . 1 . . . . . . . . . 1 . . Recyclers 2 | . 1 . . . . . . . . . 1 . . Tunnel 1 | . . . . . . . . . . 1 . . . Scanalyzers . | . . . . . . . . . . . . . . Garrison Access 1 | . . . . . . . . . . . 1 . . Watchers 1 | . . . . . . . . . . . 1 . . Data Cores Recovered 2 | . . . 1 . . . . . . 1 . . . Used . | . . . . . . . . . . . . . . Hacking Detections 34 | . 4 . 5 . . 1 1 2 . 2 8 4 7 Full Trace Events 5 | . . . . . . . . . . . 1 . 4 Feedback Events . | . . . . . . . . . . . . . . Feedback Blocked . | . . . . . . . . . . . . . . Robot Schematics Acquired . | . . . . . . . . . . . . . . Robots Built . | . . . . . . . . . . . . . . Authchips . | . . . . . . . . . . . . . . Time . | . . . . . . . . . . . . . . Total Robot Build Rating . | . . . . . . . . . . . . . . Part Schematics Acquired . | . . . . . . . . . . . . . . Parts Built . | . . . . . . . . . . . . . . Authchips . | . . . . . . . . . . . . . . Time . | . . . . . . . . . . . . . . Total Part Build Rating . | . . . . . . . . . . . . . . Parts Repaired 1 | . . . 1 . . . . . . . . . . Time 38 | . . . 38 . . . . . . . . . . Parts Recycled . | . . . . . . . . . . . . . . Recycled Matter 50 | . 50 . . . . . . . . . . . . Retrieved Matter . | . . . . . . . . . . . . . . Retrieved Components . | . . . . . . . . . . . . . . Parts Scanalyzed . | . . . . . . . . . . . . . . Part Schematics Acquired . | . . . . . . . . . . . . . . Parts Damaged . | . . . . . . . . . . . . . . Bothacking | -11 -10 -10 -9 -9 -9 -8 -8 -8 -8 -8 -7 -6 -6 ------------ Run | Yrd Mat Min Mat Min Exi Min Mat Gar Mat Sto Fac Fac Ext Used RIF Installer 2 | . . . . . . . . 2 . . . . . Alert ID Control 1 | . . . . . . . . 1 . . . . . Robots Hacked 28 | . . . . . . . . 5 4 6 11 1 1 Non-combat 15 | . . . . . . . . . . 3 10 1 1 Combat 13 | . . . . . . . . 5 4 3 1 . . Robot Hacks Applied 35 | . . . . . . . . 5 5 9 14 1 1 no_distress 1 | . . . . . . . . . . . . 1 . generate_echo 1 | . . . . . . . . . . 1 . . . start_evac 1 | . . . . . . . . . . . 1 . . map_walls 2 | . . . . . . . . . . 1 1 . . ignore_parts 1 | . . . . . . . . . . 1 . . . purge_threat 2 | . . . . . . . . . . 2 . . . map_route 2 | . . . . . . . . . . . 2 . . link_fov 5 | . . . . . . . . . . . 5 . . amplify_resonance 3 | . . . . . . . . . 2 . 1 . . reboot_system 2 | . . . . . . . . 1 1 . . . . overwrite_iff 2 | . . . . . . . . 1 . 1 . . . formatsys_low 5 | . . . . . . . . . . 1 3 . 1 formatsys_high 8 | . . . . . . . . 3 2 2 1 . . Relay Couplers Released 15 | . . . . . . . . 11 . . 2 2 . Machine Destruction 15 | . . . . . . . . 11 . . 2 2 . Attached 12 | . . . . . . . . 4 2 2 3 . 1 Fabnet Peak Effective % . | . . . . . . . . . . . . . . Robots Rewired 8 | . . . . . . . . 4 . . . . 4 Allies Hacked . | . . . . . . . . . . . . . . Hacks Repelled . | . . . . . . . . . . . . . . Allies | -11 -10 -10 -9 -9 -9 -8 -8 -8 -8 -8 -7 -6 -6 -------- Run | Yrd Mat Min Mat Min Exi Min Mat Gar Mat Sto Fac Fac Ext Total Allies 45 | . 1 . . . . . . 11 2 8 7 . 16 Largest Group 6 | . 1 1 1 . . . . 5 3 5 3 . 6 Highest-Rated Group 306 | . 10 10 10 . . . . 91 42 77 93 . 306 Highest-Rated Ally 159 | . 10 10 10 . . . . 39 16 21 31 . 159 Total Orders 27 | . . . . 1 . . . 14 2 8 2 . . STAY 3 | . . . . . . . . 2 1 . . . . ROAM 11 | . . . . . . . . 5 . 5 1 . . FOLLOW 4 | . . . . . . . . 3 1 . . . . AID 1 | . . . . . . . . . . . 1 . . RETURN 8 | . . . . 1 . . . 4 . 3 . . . Ally Attacks 295 | . . . . . . . . 65 20 70 16 . 124 Total Damage 4672 | . . . . . . . . 1117 225 559 285 . 2486 Kills 39 | . . . . . . . . 9 2 5 . . 23 Allies Corrupted 1 | . . . . . . . . . . . 1 . . Allies Melted 1 | . . . . . . . . . . . . . 1 Turrets Deployed 3 | . . . . . . . . 3 . . . . . Intel | -11 -10 -10 -9 -9 -9 -8 -8 -8 -8 -8 -7 -6 -6 ------- Run | Yrd Mat Min Mat Min Exi Min Mat Gar Mat Sto Fac Fac Ext Robot Analysis Total . | . . . . . . . . . . . . . . Derelict Logs Recovered 1 | . . . . 1 . . . . . . . . . Drone Launches 74 | . . . . 1 . . . 30 . 43 . . . Drone Recoveries 71 | . . . . 1 . . . 29 . 41 . . . Exploration | -11 -10 -10 -9 -9 -9 -8 -8 -8 -8 -8 -7 -6 -6 ------------- Run | Yrd Mat Min Mat Min Exi Min Mat Gar Mat Sto Fac Fac Ext Turns Passed 7354 | 79 210 120 739 785 336 477 182 942 327 520 1580 251 806 Spaces Moved 5549 | 31 127 64 379 462 258 516 168 749 200 425 1291 425 454 Core 2 | 2 . . . . . . . . . . . . . Treads 1047 | 29 127 64 379 326 122 . . . . . . . . Legs 3059 | . . . . . 136 516 168 749 200 425 862 . 3 Wheels 547 | . . . . 136 . . . . . . 40 . 371 Hover 894 | . . . . . . . . . . . 389 425 80 Flight . | . . . . . . . . . . . . . . Fastest Speed 44 | 50 160 160 163 115 90 90 90 90 90 90 48 44 44 Average Speed 105 | 152 160 163 163 148 123 90 90 97 99 104 93 52 103 Slowest Speed 260 | 160 160 165 165 250 170 90 90 100 100 170 260 117 260 Overloaded Moves . | . . . . . . . . . . . . . . Propulsion Burnouts . | . . . . . . . . . . . . . . Robots Hopped 4 | . . . . . . . . 4 . . . . . Cave-ins Triggered . | . . . . . . . . . . . . . . Exploration Rate (%) 41 | 4 29 14 44 79 61 90 15 76 14 66 35 16 41 Regions Visited 13 Branch Regions 6 Pre-discovered Areas 2 | . . . . . 1 . . . . 1 . . . Known Exits Taken 3 | . . . . . . . 1 . . . 1 1 . Unknown Exits Taken 9 | 1 1 1 1 1 1 1 . . 1 1 . . . Scrap Searched 4 | . . 1 . 2 . 1 . . . . . . . Spaces Dug 56 | . . . . 6 . . . 14 2 . 20 11 3 Terrain Destroyed 483 | . . . 24 147 . . 39 54 2 9 184 21 3 Melee 11 | . . . . . . . . 1 2 . 5 . 3 Projectile 18 | . . . . . . . 7 . . 9 2 . . AOE 454 | . . . 24 147 . . 32 53 . . 177 21 . Terrain Rammed . | . . . . . . . . . . . . . . Walls Destroyed . | . . . . . . . . . . . . . . Machines Disabled . | . . . . . . . . . . . . . . Actions | -11 -10 -10 -9 -9 -9 -8 -8 -8 -8 -8 -7 -6 -6 --------- Run | Yrd Mat Min Mat Min Exi Min Mat Gar Mat Sto Fac Fac Ext Total 6663 | 45 134 77 482 511 278 528 198 910 301 501 1592 445 661 Wait 437 | . 3 . 50 2 1 11 26 42 60 20 176 1 45 Move 5529 | 30 126 63 378 461 257 515 167 740 200 424 1290 424 454 Hop 4 | . . . . . . . . 4 . . . . . Pick Up 79 | 1 3 4 10 2 6 . 2 22 2 8 11 3 5 Fast Attach 62 | 7 1 2 5 3 3 . 1 6 3 8 9 3 11 Attach 58 | . . . 3 7 . . 1 11 1 6 17 4 8 Detach 19 | . . . 2 1 2 . . 4 1 4 1 1 3 Swap 30 | . . 1 3 3 1 . . 3 3 1 9 1 5 Drop 91 | . 1 3 12 3 8 . 1 21 4 14 16 3 5 Fire 105 | 7 . . 19 16 . . . 12 11 . 21 4 15 Melee 195 | . . . . 13 . . . 43 15 16 41 1 66 Ram . | . . . . . . . . . . . . . . Kick 3 | . . . . . . 2 . . 1 . . . . Crush 4 | . . 4 . . . . . . . . . . . Escape Stasis 18 | . . . . . . . . 2 . . . . 16 Rewire 24 | . . . . . . . . . . . 1 . 23 Trap 5 | . . . . . . . . . . . . . 5 Miscellaneous . | . . . . . . . . . . . . . . Route ------- -11/Scrapyard -10/Materials -10/Mines -9/Materials (discovered 2 exits: *Mat / *Min) -9/Mines (discovered 2 exits: *Mat / *Exi) -9/Exiles -8/Mines -8/Materials -8/Garrison (discovered 3 exits: [*Mat x3]) -8/Materials -8/Storage (discovered 2 exits: *Fac / [*Rec]) -7/Factory (discovered 2 exits: *Fac / *Low) -6/Factory -6/Extension History --------- Turn | Location | Event 25 | -11/Scrapyard | Discovered new exit (range 16) 80 | -11/Scrapyard | Entered Materials 266 | -10/Materials | Discovered new exit (range 15) 290 | -10/Materials | Entered Mines 290 | -10/Mines | Accompanied by 1 ally 304 | -10/Mines | Build established: Mutant 326 | -10/Mines | Met a Derelict shopkeep closing up shop 375 | -10/Mines | Discovered new exit (range 8) 410 | -10/Mines | Entered Materials 410 | -9/Materials | Accompanied by 1 ally 410 | -9/Materials | Evolved 2 slots: Propulsion x1, Utility x1 689 | -9/Materials | Discovered new exit (range 16) 1061 | -9/Materials | Repaired EM Pulse Cannon 1097 | -9/Materials | Discovered new exit (range 14) 1149 | -9/Materials | Entered Mines 1150 | -9/Mines | Assembled infested the area 1192 | -9/Mines | Destroyed 23 combat bots 1199 | -9/Mines | Lost 3 parts (1n2u) 1222 | -9/Mines | Core integrity fell below 50% 1252 | -9/Mines | Lost 4 parts (2n1u1w) 1300 | -9/Mines | Deemed a non-threat by the Exiles lab entrance 1300 | -9/Mines | Discovered new exit (range 5) 1536 | -9/Mines | Discovered new exit (range 9) 1797 | -9/Mines | Learned Materials stockpile data 1802 | -9/Mines | Found the Drone Emporium 1812 | -9/Mines | Found Prototype Device 1868 | -9/Mines | Identified Splice Drone Bay 1934 | -9/Mines | Entered Exiles 1971 | -9/Exiles | Met 8R-AWN 2000 | -9/Exiles | Met EX-HEX 2059 | -9/Exiles | Met EX-BIN 2079 | -9/Exiles | Aligned with FarCom system 2081 | -9/Exiles | Given EX-Vault access code 2117 | -9/Exiles | Opened EX-Vault 2131 | -9/Exiles | Found Potential Leg 2134 | -9/Exiles | Found Potential Leg 2137 | -9/Exiles | Found Deploy-a-Sentry 2139 | -9/Exiles | Found Deploy-a-Sentry 2141 | -9/Exiles | Found Deploy-a-Sentry 2144 | -9/Exiles | Found AWS/Thermal 2165 | -9/Exiles | Warned to stay clear of 0b10 Research branches 2191 | -9/Exiles | Met EX-DEC 2194 | -9/Exiles | Learned location of Zion (-6) 2258 | -9/Exiles | Discovered new exit (range 14) 2270 | -9/Exiles | Stole three prototypes: AWS/Thermal, Potential Leg, Deploy-a-Sentry 2270 | -9/Exiles | Entered Mines 2345 | -8/Mines | Discovered new exit (range 10) 2747 | -8/Mines | Entered Materials 2747 | -8/Materials | Evolved 2 slots: Utility x1, Weapon x1 2891 | -8/Materials | Identified exit to Garrison 2929 | -8/Materials | Entered Garrison 2975 | -8/Garrison | Triggered checkpoint 3086 | -8/Garrison | Installed Relay Interface Framework 3123 | -8/Garrison | Triggered checkpoint 3124 | -8/Garrison | DAS Turret deployed 3126 | -8/Garrison | DAS Turret deployed 3131 | -8/Garrison | Triggered checkpoint 3141 | -8/Garrison | Triggered checkpoint 3144 | -8/Garrison | Triggered checkpoint 3175 | -8/Garrison | Destroyed 9 combat bots 3207 | -8/Garrison | Discovered new exit (range 14) 3322 | -8/Garrison | Garrison Relay disabled 3341 | -8/Garrison | Triggered checkpoint 3363 | -8/Garrison | Triggered checkpoint 3389 | -8/Garrison | Discovered new exit (range 5) 3632 | -8/Garrison | Build established: Bothacker-Mutant 3633 | -8/Garrison | Triggered checkpoint 3661 | -8/Garrison | Expanded RIF knowledge: Alert ID Control 3682 | -8/Garrison | Garrison Relay disabled 3769 | -8/Garrison | Discovered new exit (range 12) 3797 | -8/Garrison | DAS Turret deployed 3871 | -8/Garrison | Entered Materials 3871 | -8/Materials | Accompanied by 2 allies 4025 | -8/Materials | Lost 3 allies 4104 | -8/Materials | Lost 3 parts (1p1n1w) 4188 | -8/Materials | Discovered new exit (range 4) 4191 | -8/Materials | Garrison activated, responded to threat 4198 | -8/Materials | Entered Storage 4198 | -8/Storage | Accompanied by 1 ally 4365 | -8/Storage | Core integrity fell below 50% 4457 | -8/Storage | Lost 4 allies 4517 | -8/Storage | Used back door to open Recycling access 4517 | -8/Storage | Discovered new exit (range 4) 4668 | -8/Storage | Discovered new exit (range 15) 4718 | -8/Storage | Entered Factory 4718 | -7/Factory | Evolved 2 slots: Propulsion x1, Utility x1 4720 | -7/Factory | FarCom data flow suspended 5085 | -7/Factory | Build established: Mutant 5085 | -7/Factory | Allied Derelicts emerged from ambush trap array 6044 | -7/Factory | Discovered new exit (range 5) 6045 | -7/Factory | Identified exit to Lower Caves 6294 | -7/Factory | Discovered new exit (range 9) 6297 | -7/Factory | Identified exit to Factory 6298 | -7/Factory | Entered another Factory area 6298 | -6/Factory | Evolved 2 slots: Propulsion x1, Utility x1 6362 | -6/Factory | Build established: Scavenger-Mutant 6501 | -6/Factory | Spotted B-75 Beast 6544 | -6/Factory | Discovered new exit (range 12) 6548 | -6/Factory | Identified exit to Extension 6549 | -6/Factory | Entered Extension 6557 | -6/Extension | Disrupted transfer network 6652 | -6/Extension | Lost 7 parts (4n1u2w) 6791 | -6/Extension | Rescued a captive Derelict 6798 | -6/Extension | Rescued a captive Derelict 7012 | -6/Extension | Rescued A7 7016 | -6/Extension | Rescued a captive Derelict 7022 | -6/Extension | Rescued a captive Derelict 7134 | -6/Extension | Rescued a captive Derelict 7135 | -6/Extension | Rescued a captive Derelict 7196 | -6/Extension | Rescued a captive Derelict 7197 | -6/Extension | Rescued a captive Derelict 7249 | -6/Extension | First assault squad dispatched 7302 | -6/Extension | Rescued a captive Derelict 7302 | -6/Extension | Spotted B-75 Beast 7304 | -6/Extension | Rescued a captive Derelict 7309 | -6/Extension | Spotted B-75 Beast 7325 | -6/Extension | Extracted ID and sensor layout for unrecognized location from A7's data core 7342 | -6/Extension | Core integrity fell below 50% 7352 | -6/Extension | Core integrity fell below 20% 7355 | -6/Extension | Allies destroyed B-75 Beast 7355 | -6/Extension | Destroyed by G-50 Soldier with Heavy Laser Last Messages --------------- 07337_ Imp. Proton Missile Launcher destroyed. 07337_ Carbon-fiber Leg destroyed. 07338_ Door Terminal disabled. 07338_ Knocked back. 07342_ Arm. Huge Wheel destroyed. 07343_ Imp. Deuterium Engine destroyed. 07343_ Knocked back. 07343_ Hvy. Flak Cannon destroyed. 07346_ Relay Coupler [NC] destroyed. 07347_ Knocked back. 07347_ Flexi-carbon Leg destroyed. 07348_ Phasing Sabre destroyed. 07349_ Hvy. Mace destroyed. 07351_ R-10 Processor collects Hacking Suite. 07351_ Adv. Heat Sink destroyed. 07351_ Critical hit (Burn: +37). 07352_ B-75 Beast misfires. 07354_ R-10 Processor collects Corrupted Imp. Heat Sink. 07355_ B-75 Beast destroyed. Map ----- +----------------------------------------------------+ | ######?????????# #??????????????????????????????? | | #???????????????# #??????????????????????????????? | | ????????????????#[#??????????????????????????????? | | ??????????????###%#??????????????????????????????? | | ????????????###T#%#??????????????????????????????? | | ????????????# %=*#??????????????????????????????? | | ????????????# #=#??????????????????????????????? | | ????????????### # #??????????????????????????????? | | ??????????????#?"%####???????#???????????????????? | | ????????????????#=##"##?##?? #???????????????????? | | ??????????????###%##" ## ### ###?????????????????? | | ??????????????# !%%! " "#?????????????????? | | ??????????????#%[%"% R #?????????????????? | | ??????????????#[%[=% #?????????????????? | | ??????????????#!%%!! #?????????????????? | | ???????########%==[* %#######???????????? | | ???? *==*! ???????????? | | ??? i % ???????????? | | ???? m BB g ???????????? | | ???? BBl ??????????? | | ????? !mg % g g ??????????? | | ????####"###### !%= gg #####?????????????? | | ???????#??????# % [! g%% #?????????????????? | | ??????????????# % % gb #?????????????????? | | ??????????????# b % ##????????????????? | | ??????????????# @ ;#????????????????? | | ??????????????###;## #"""##;###;#????????????????? | | ????????????????###"##???????????????????????????? | | ??????????????????##?????????????????????????????? | | | | | | | | | | | | | | | | | | | | | | | | | | | | | | | | | | | | | | | | | | | +----------------------------------------------------+ Best States ------------- Heat Dissipation 56 Energy Generation 18 Energy Capacity 310 Matter Stores 390 Matter Capacity 400 Sight Range 16 Robot Scan Range 15 Terrain Scan Range 16 Terrain Scan Density 210 Jamming Range 14 Armor Coverage 300 Evasion (%) 57 Recoil Reduction 3 Offensive Hacking 10 Defensive Hacking 10 Relay Coupler Types 2 Relay Coupler Value 73 Item Schematics ----------------- None Robot Schematics ------------------ None Fabricated ------------ Nothing Alien Tech Used ----------------- None Achievements -------------- Hehehe Challenges ------------ None Game ------ Seed NodeRecoilShifter Manual? 0 Play Time 01:28:49 Cumulative 163.3 hours Start 2024.05.06 @ 15:44:11 End 2024.05.06 @ 17:12:08 Sessions 1 Manual Loads 0 Difficulty Rogue Special Mode None Game No. 157 Rogue 152 Adventurer 5 Explorer 0 Win Type - Total 3 Types 2/0/0/1/0/0/0/0/0 Lore% 53 Gallery% 72 Achievement% 55 Wizard Run 0 Options --------- Layout 1 ASCII 0 Keyboard 0 Movement Arrows Keybinds 0 Fullscreen 1 Font 24/Terminus Map View 50x35 Zoom Use 0% Tactical HUD 1 Map Filters NONE Filters NONE Steam 1 RUN: d5d4838e-e84e-41a4-8b54-68e601ca523a